Organisation Name,Organisation Code,Effective Date,Directorate,Service Category,Service Category URI,Supplier Name,Payment Date,Transaction Number,Net Amount,Irrecoverable VAT,Purpose_of_the_expenditure,Merchant Category
Wyre Council,http://opendatacommunities.org/doc/district-council/wyre,27/09/2020,People and Places,Cultural and Related Services,132A,HUWS GRAY LTD,01/04/2020,148743,148.46,0.00,R12923,Engineering and Maintenance Team
Wyre Council,http://opendatacommunities.org/doc/district-council/wyre,27/09/2020,People and Places,Environmental Services,132B,AITCH TOOLS & FASTENERS LTD,01/04/2020,148745,2188.07,0.00,INVOICES045476 - 1304.62045370 - 34.80045309 - 24.65045477 - 1848.06,Materials and Consumables
Wyre Council,http://opendatacommunities.org/doc/district-council/wyre,27/09/2020,People and Places,Parking Services,133F,AITCH TOOLS & FASTENERS LTD,01/04/2020,148745,279.80,0.00,INVOICES045476 - 1304.62045370 - 34.80045309 - 24.65045477 - 1848.06,"Paths, Roads and Car Park Mtnce Annual"
Wyre Council,http://opendatacommunities.org/doc/district-council/wyre,27/09/2020,People and Places,Support Services,135B,AITCH TOOLS & FASTENERS LTD,01/04/2020,148745,29.00,0.00,INVOICES045476 - 1304.62045370 - 34.80045309 - 24.65045477 - 1848.06,Responsive Building Maintenance
Wyre Council,http://opendatacommunities.org/doc/district-council/wyre,27/09/2020,People and Places,Support Services,135B,AITCH TOOLS & FASTENERS LTD,01/04/2020,148745,20.54,0.00,INVOICES045476 - 1304.62045370 - 34.80045309 - 24.65045477 - 1848.06,Purchase of Tools or Equipment
Wyre Council,http://opendatacommunities.org/doc/district-council/wyre,27/09/2020,People and Places,Support Services,135B,AITCH TOOLS & FASTENERS LTD,01/04/2020,148745,159.36,0.00,INVOICES045476 - 1304.62045370 - 34.80045309 - 24.65045477 - 1848.06,Routine Maintenance
Wyre Council,http://opendatacommunities.org/doc/district-council/wyre,27/09/2020,People and Places,Support Services,135B,HUWS GRAY LTD,01/04/2020,148743,148.46,0.00,R12923,Materials and Consumables
Wyre Council,http://opendatacommunities.org/doc/district-council/wyre,27/09/2020,Resources,Housing General Fund,134A,AMAZON.CO.UK XE2HO8OM5,01/04/2020,148695,89.99,0.00,Order # 206-2950370-3115506,Purchase of Tools or Equipment
Wyre Council,http://opendatacommunities.org/doc/district-council/wyre,27/09/2020,Resources,Support Services,135B,AMZNMKTPLACE AMAZON.CO,14/05/2020,148705,10.82,0.00,Order # 026-8812626-0322742,Materials and Consumables
Wyre Council,http://opendatacommunities.org/doc/district-council/wyre,27/09/2020,Resources,Support Services,135B,AMZNMKTPLACE,01/04/2020,148723,13.32,0.00,Order # 026-6164112-4141947,Stationery
Wyre Council,http://opendatacommunities.org/doc/district-council/wyre,27/09/2020,Resources,Support Services,135B,AMZNMKTPLACE,01/04/2020,148725,166.64,0.00,Order # 026-6164112-4141947,Comp Hardware Purchases
Wyre Council,http://opendatacommunities.org/doc/district-council/wyre,27/09/2020,Resources,Support Services,135B,AMZNMKTPLACE AMAZON.CO,01/04/2020,148721,83.32,0.00,Order # 202-1518759-9613938,Comp Hardware Purchases
Wyre Council,http://opendatacommunities.org/doc/district-council/wyre,27/09/2020,Resources,Support Services,135B,AMZNMKTPLACE AMAZON.CO,01/04/2020,148717,16.28,0.00,Order # 202-1518759-9613938,Comp Hardware Purchases
Wyre Council,http://opendatacommunities.org/doc/district-council/wyre,27/09/2020,Resources,Support Services,135B,AMZNMKTPLACE AMAZON.CO,01/04/2020,148719,14.98,0.00,Order # 202-1518759-9613938,Comp Hardware Purchases
Wyre Council,http://opendatacommunities.org/doc/district-council/wyre,27/09/2020,Resources,Support Services,135B,AMZNMKTPLACE AMAZON.CO,01/04/2020,148715,34.74,0.00,Order # 026-0830557-9781911,Comp Hardware Purchases
Wyre Council,http://opendatacommunities.org/doc/district-council/wyre,27/09/2020,Resources,Support Services,135B,AMZNMKTPLACE AMAZON.CO,01/04/2020,148713,8.32,0.00,Order # 206-0908650-6625169,Comp Hardware Purchases
Wyre Council,http://opendatacommunities.org/doc/district-council/wyre,27/09/2020,Resources,Support Services,135B,AMAZON.CO.UK O108L50F5,01/04/2020,148707,83.32,0.00,Order # 206-7028275-9705108,Comp Hardware Purchases
Wyre Council,http://opendatacommunities.org/doc/district-council/wyre,27/09/2020,Resources,Support Services,135B,AMZNMKTPLACE,01/04/2020,148711,17.37,0.00,Order # 202-9433062-1343568,Comp Hardware Purchases
Wyre Council,http://opendatacommunities.org/doc/district-council/wyre,27/09/2020,Resources,Support Services,135B,AMZNMKTPLACE,01/04/2020,148703,19.98,0.00,Order # 206-1902939-0345954,Comp Hardware Purchases
Wyre Council,http://opendatacommunities.org/doc/district-council/wyre,27/09/2020,Resources,Support Services,135B,APPLE.COM/BILL,01/04/2020,148701,10.82,0.00,,Comp Hardware Purchases
Wyre Council,http://opendatacommunities.org/doc/district-council/wyre,27/09/2020,Resources,Support Services,135B,AMZNMKTPLACE,01/04/2020,148699,8.28,0.00,Order # 204-7426004-3065933,Comp Hardware Purchases
Wyre Council,http://opendatacommunities.org/doc/district-council/wyre,27/09/2020,Resources,Support Services,135B,APPLE.COM/BILL,01/04/2020,148697,5.82,0.00,,Comp Hardware Purchases
Wyre Council,http://opendatacommunities.org/doc/district-council/wyre,27/09/2020,Resources,Support Services,135B,AMZNMKTPLACE AMAZON.CO,01/04/2020,148709,8.66,0.00,Order # 026-1640356-6066752,Computer Stationery and Consumables
Wyre Council,http://opendatacommunities.org/doc/district-council/wyre,27/09/2020,Resources,Support Services,135B,WWW.BROADBANDBUYER.CO.,02/04/2020,148802,154.80,0.00,23658 White Flat 2m CAT7 Ethernet Patch Cable (S/FTP) 20 1.63 32.609666 TP-Link TL-PoE10R Power o,Comp Hardware Purchases
Wyre Council,http://opendatacommunities.org/doc/district-council/wyre,27/09/2020,Resources,Support Services,135B,AMAZON.CO.UK 4E3TR0K25,02/04/2020,148784,19.96,0.00,Order # 206-6975570-8165122,Comp Hardware Purchases
Wyre Council,http://opendatacommunities.org/doc/district-council/wyre,27/09/2020,Resources,Support Services,135B,AMZNMKTPLACE AMAZON.CO,02/04/2020,148800,74.76,0.00,Order # 204-3949321-4097116,Comp Hardware Purchases
Wyre Council,http://opendatacommunities.org/doc/district-council/wyre,27/09/2020,Resources,Support Services,135B,AMAZON.CO.UK JV2QB9QZ5,02/04/2020,148798,587.02,0.00,Order # 206-0095979-3255575,Comp Hardware Purchases
Wyre Council,http://opendatacommunities.org/doc/district-council/wyre,27/09/2020,Resources,Support Services,135B,AMZNMKTPLACE,02/04/2020,148796,25.80,0.00,Order # 204-6604872-1364347,Comp Hardware Purchases
Wyre Council,http://opendatacommunities.org/doc/district-council/wyre,27/09/2020,Resources,Support Services,135B,AMZNMKTPLACE,02/04/2020,148794,60.74,0.00,Order # 205-8907502-3193908,Comp Hardware Purchases
Wyre Council,http://opendatacommunities.org/doc/district-council/wyre,27/09/2020,Resources,Support Services,135B,AMZNMKTPLACE,02/04/2020,148792,33.30,0.00,Order # 205-7874422-4936348,Comp Hardware Purchases
Wyre Council,http://opendatacommunities.org/doc/district-council/wyre,27/09/2020,Resources,Support Services,135B,AMZNMKTPLACE AMAZON.CO,02/04/2020,148786,29.94,0.00,Order # 206-7173504-3223510,Comp Hardware Purchases
Wyre Council,http://opendatacommunities.org/doc/district-council/wyre,27/09/2020,Resources,Support Services,135B,2CO.COM SCALEFUSION,02/04/2020,148804,567.28,0.00,x30 Licenses,Licences
Wyre Council,http://opendatacommunities.org/doc/district-council/wyre,27/09/2020,Resources,Support Services,135B,AMZNMKTPLACE,02/04/2020,148788,19.98,0.00,Order # 205-1255343-0033961,Purchase of Tools or Equipment
Wyre Council,http://opendatacommunities.org/doc/district-council/wyre,27/09/2020,Resources,Support Services,135B,AMZNMKTPLACE,02/04/2020,148790,24.96,0.00,Order # 205-6334375-2329948,Purchase of Tools or Equipment
Wyre Council,http://opendatacommunities.org/doc/district-council/wyre,27/09/2020,People and Places,Cultural and Related Services,132A,THE PLANT PLACE,08/04/2020,149006,9.15,0.00,2x Compost - 10.00Labels - 0.98(above for WECP Cottage Garden),Conservation
Wyre Council,http://opendatacommunities.org/doc/district-council/wyre,27/09/2020,People and Places,Cultural and Related Services,132A,www.nhbs.com,08/04/2020,149010,41.67,0.00,Voucher for NHBS - 50.00,Conservation
Wyre Council,http://opendatacommunities.org/doc/district-council/wyre,27/09/2020,People and Places,Cultural and Related Services,132A,www.twowests.co.uk,08/04/2020,149008,55.82,0.00,Modular Staging - 62.00(above for Greenhouse/Cottage Garden at WECP),Conservation
Wyre Council,http://opendatacommunities.org/doc/district-council/wyre,27/09/2020,People and Places,Support Services,135B,www.safe.co.uk,15/04/2020,149140,25.07,0.00,order s995423,Materials and Consumables
Wyre Council,http://opendatacommunities.org/doc/district-council/wyre,27/09/2020,People and Places,Planning and Development Servs,132C,BUILDERS SUPPLIES (WEST COAST) LTD,21/04/2020,149275,50.58,0.00,INVOICE NO 0003/00041833brown cowled wall outlet damper,Materials and Consumables
Wyre Council,http://opendatacommunities.org/doc/district-council/wyre,27/09/2020,People and Places,Planning and Development Servs,132C,BUILDERS SUPPLIES (WEST COAST) LTD,27/04/2020,149435,4.04,0.00,Items for Garage toilet .Invoice number 0003/00041995,Materials and Consumables
Wyre Council,http://opendatacommunities.org/doc/district-council/wyre,27/09/2020,People and Places,Support Services,135B,AUTO BITZ MOTOR FACTORS,27/04/2020,149431,30.40,0.00,WASHER PUMP3 X REAR NUMBER PLATES,Daywork Materials (Excl.Tyres)
Wyre Council,http://opendatacommunities.org/doc/district-council/wyre,27/09/2020,People and Places,Central Services to the Public,131C,autobitz,27/04/2020,149433,79.68,0.00, 8 bags zip tie x 2,Materials and Consumables
Wyre Council,http://opendatacommunities.org/doc/district-council/wyre,27/09/2020,Resources,Housing General Fund,134A,ARGOS,27/04/2020,149412,29.98,0.00,REDACT,Rough Sleeper Project/NSNO
Wyre Council,http://opendatacommunities.org/doc/district-council/wyre,27/09/2020,Resources,Housing General Fund,134A,ARGOS,27/04/2020,149414,29.98,0.00,REDACT,Rough Sleeper Project/NSNO
Wyre Council,http://opendatacommunities.org/doc/district-council/wyre,27/09/2020,People and Places,Environmental Services,132B,John Macadam &amp;amp; son Ltd,29/04/2020,149526,108.50,0.00,road sweeper call out charge - hydrolic leak,Daywork Materials (Excl.Tyres)
Wyre Council,http://opendatacommunities.org/doc/district-council/wyre,27/09/2020,People and Places,Environmental Services,132B,John Macadam &amp;amp; son LTd,29/04/2020,149528,108.50,0.00,road sweeper call out charge,Daywork Materials (Excl.Tyres)
Wyre Council,http://opendatacommunities.org/doc/district-council/wyre,27/09/2020,People and Places,Support Services,135B,DVLA,29/04/2020,149524,262.50,0.00,PE07 KNH 12 months vehicle tax,Licences/MOT Certificates
Wyre Council,http://opendatacommunities.org/doc/district-council/wyre,27/09/2020,People and Places,Support Services,135B,blackcircles.com,29/04/2020,149530,527.75,0.00,Michelin primacy 4 195/65 R15 H (95) x 10,Tyres
Wyre Council,http://opendatacommunities.org/doc/district-council/wyre,27/09/2020,People and Places,Cultural and Related Services,132A,BLACKPOOL COUNCIL,04/05/2020,149628,20.92,0.00,Extra bin collection after TDCI,Refuse Collection
Wyre Council,http://opendatacommunities.org/doc/district-council/wyre,27/09/2020,People and Places,Cultural and Related Services,132A,AMAZON.CO.UK,04/05/2020,149630,22.46,0.00,Amazon - 2 x Trixes Keyboards,Purchase of Tools or Equipment
Wyre Council,http://opendatacommunities.org/doc/district-council/wyre,27/09/2020,People and Places,Cultural and Related Services,132A,AMAZON.CO.UK,04/05/2020,149626,7.47,0.00,"Amazon, Year planners",Purchase of Tools or Equipment
Wyre Council,http://opendatacommunities.org/doc/district-council/wyre,27/09/2020,People and Places,Cultural and Related Services,132A,ASDA STORES LTD,04/05/2020,149632,1.00,0.00,Lemonade for Clinton,Kiosk stock
Wyre Council,http://opendatacommunities.org/doc/district-council/wyre,27/09/2020,People and Places,Cultural and Related Services,132A,ASDA STORES LTD,04/05/2020,149616,9.97,0.00,Fruit for InVictus Dance and a bottle of washing up liquid.,Kiosk stock
Wyre Council,http://opendatacommunities.org/doc/district-council/wyre,27/09/2020,People and Places,Cultural and Related Services,132A,ASDA STORES LTD,04/05/2020,149618,7.00,0.00,Biscuits for tea dance,Kiosk stock
Wyre Council,http://opendatacommunities.org/doc/district-council/wyre,27/09/2020,People and Places,Cultural and Related Services,132A,ASDA STORES LTD,04/05/2020,149620,10.00,0.00,Biscuits for tea dance and Light and life.,Kiosk stock
Wyre Council,http://opendatacommunities.org/doc/district-council/wyre,27/09/2020,People and Places,Cultural and Related Services,132A,ASDA STORES LTD,04/05/2020,149622,26.44,0.00,Beerfest gin bar,Kiosk stock
Wyre Council,http://opendatacommunities.org/doc/district-council/wyre,27/09/2020,People and Places,Cultural and Related Services,132A,ASDA STORES LTD,04/05/2020,149624,7.67,0.00,Beerfest gin bar,Kiosk stock
Wyre Council,http://opendatacommunities.org/doc/district-council/wyre,27/09/2020,People and Places,Central Services to the Public,131C,Morrisons,04/05/2020,149634,561.00,0.00,Fleetwood Food Hub,Catering
Wyre Council,http://opendatacommunities.org/doc/district-council/wyre,27/09/2020,People and Places,Central Services to the Public,131C,Morrisons,04/05/2020,149640,662.99,0.00,Fleetwood Food Hub delivery 16/04/2020,Catering
Wyre Council,http://opendatacommunities.org/doc/district-council/wyre,27/09/2020,People and Places,Central Services to the Public,131C,Morrisons,04/05/2020,149636,733.15,0.00,Fleetwood Food Hub Delivery 27/04/2020,Catering
Wyre Council,http://opendatacommunities.org/doc/district-council/wyre,27/09/2020,People and Places,Central Services to the Public,131C,Morrisons,04/05/2020,149638,466.94,0.00,For Fleetwood food hub.,Catering
Wyre Council,http://opendatacommunities.org/doc/district-council/wyre,27/09/2020,People and Places,Cultural and Related Services,132A,asda,04/05/2020,149649,6.00,0.00,biscuits,Kiosk stock
Wyre Council,http://opendatacommunities.org/doc/district-council/wyre,27/09/2020,People and Places,Cultural and Related Services,132A,asda,04/05/2020,149643,7.05,0.00,salt and pepper for boxing 5 Oct,Drinks
Wyre Council,http://opendatacommunities.org/doc/district-council/wyre,27/09/2020,People and Places,Cultural and Related Services,132A,asda,04/05/2020,149645,62.39,0.00,fruit for bars,Drinks
Wyre Council,http://opendatacommunities.org/doc/district-council/wyre,27/09/2020,People and Places,Cultural and Related Services,132A,asda,04/05/2020,149647,149.30,0.00,bar stock,Drinks
Wyre Council,http://opendatacommunities.org/doc/district-council/wyre,27/09/2020,People and Places,Cultural and Related Services,132A,savers,04/05/2020,149651,8.51,0.00,toiletries for Hormonal Housewives/dressing rooms,Event Hospitality
Wyre Council,http://opendatacommunities.org/doc/district-council/wyre,27/09/2020,People and Places,Cultural and Related Services,132A,HOME BARGAINS,04/05/2020,149653,32.57,0.00,toiletries and towels for hormonal housewives,Event Hospitality
Wyre Council,http://opendatacommunities.org/doc/district-council/wyre,27/09/2020,People and Places,Cultural and Related Services,132A,Card Factory,04/05/2020,149655,4.26,0.00,100 balloons for tea dancer,Event Hospitality
Wyre Council,http://opendatacommunities.org/doc/district-council/wyre,27/09/2020,People and Places,Cultural and Related Services,132A,Card Factory,04/05/2020,149657,1.98,0.00,100 candles for tea dancer,Event Hospitality
Wyre Council,http://opendatacommunities.org/doc/district-council/wyre,27/09/2020,People and Places,Highways,133B,builders supplies,04/05/2020,149671,111.25,0.00,smooth natural flag tobermore,Maint. of Unadopted Assets - Engineers
Wyre Council,http://opendatacommunities.org/doc/district-council/wyre,27/09/2020,People and Places,Environmental Services,132B,Mailchimp,04/05/2020,149663,113.61,0.00,Green waste eshot April,Promotions - General
Wyre Council,http://opendatacommunities.org/doc/district-council/wyre,27/09/2020,People and Places,Support Services,135B,LG comms membersiip,04/05/2020,149661,250.00,0.00,LG comms membership,Corporate and Professional Subscriptions
Wyre Council,http://opendatacommunities.org/doc/district-council/wyre,27/09/2020,People and Places,Support Services,135B,shell garage,04/05/2020,149673,39.44,0.00,Fuel,Petrol
Wyre Council,http://opendatacommunities.org/doc/district-council/wyre,27/09/2020,People and Places,Support Services,135B,amazon,04/05/2020,149675,23.32,0.00,office chair seat cushion,Materials and Consumables
Wyre Council,http://opendatacommunities.org/doc/district-council/wyre,27/09/2020,People and Places,Environmental Services,132B,DVLA,06/05/2020,149757,267.50,0.00,APPLICATION REF 1199-5563-0684-508212 MONTHS ROAD TAX FOR PK12 MVW,Licences/MOT Certificates
Wyre Council,http://opendatacommunities.org/doc/district-council/wyre,27/09/2020,People and Places,Environmental Services,132B,DVLA,06/05/2020,149755,267.50,0.00,APPLICATION REF 1199-5563-0684-506612 MONTHS ROAD TAX FOR PK12 MVU,Licences/MOT Certificates
Wyre Council,http://opendatacommunities.org/doc/district-council/wyre,27/09/2020,People and Places,Environmental Services,132B,DVLA,06/05/2020,149753,267.50,0.00,APPLICATION REF 1199-2811-8727-347412 MONTHS ROAD TAX FOR CX15 WVN,Licences/MOT Certificates
Wyre Council,http://opendatacommunities.org/doc/district-council/wyre,27/09/2020,People and Places,Environmental Services,132B,DVLA,06/05/2020,149759,267.50,0.00,APPLICATION REF 1199-4849-5918-983312 MONTHS ROAD TAX FOR MA17 UKN,Licences/MOT Certificates
Wyre Council,http://opendatacommunities.org/doc/district-council/wyre,27/09/2020,People and Places,Support Services,135B,DVLA,06/05/2020,149751,267.50,0.00,APPLICATION REF1199-5563-0786-821612 MONTHS ROAD TAX FOR PK14 TTX,Licences/MOT Certificates
Wyre Council,http://opendatacommunities.org/doc/district-council/wyre,27/09/2020,People and Places,Support Services,135B,DVLA,06/05/2020,149761,267.50,0.00,APPLICATION REF 1199-5563-0768-354012 MONTHS ROAD TAX FOR PK14 FKY,Licences/MOT Certificates
Wyre Council,http://opendatacommunities.org/doc/district-council/wyre,27/09/2020,Resources,Housing General Fund,134A,EE,28/05/2020,149747,10.00,0.00,REDACT,Rough Sleeper Project/NSNO
Wyre Council,http://opendatacommunities.org/doc/district-council/wyre,27/09/2020,Resources,Housing General Fund,134A,NISBETTS NEXT DAY CATERING EQUIPMENT,28/05/2020,149749,62.76,0.00,REDACT,Rough Sleeper Project/NSNO
Wyre Council,http://opendatacommunities.org/doc/district-council/wyre,27/09/2020,People and Places,Environmental Services,132B,DVLA,11/05/2020,149798,223.50,0.00,APPLICATION REFERENCE 1198-5587-2563-109412 MONTHS VEHICLE TAX FOR PO12 XLX,Licences/MOT Certificates
Wyre Council,http://opendatacommunities.org/doc/district-council/wyre,27/09/2020,People and Places,Environmental Services,132B,DVLA,11/05/2020,149810,722.50,0.00,APPLICATION REFERENCE 1198-6947-5889-427312 MONTHS VEHICLE TAX FOR VX05 FDF,Licences/MOT Certificates
Wyre Council,http://opendatacommunities.org/doc/district-council/wyre,27/09/2020,People and Places,Environmental Services,132B,DVLA,11/05/2020,149806,167.50,0.00,APPLICATION REFERENCE 1198-4686-3264-048712 MONTHS VEHICLE TAX FOR LJ16 DYO,Licences/MOT Certificates
Wyre Council,http://opendatacommunities.org/doc/district-council/wyre,27/09/2020,People and Places,Support Services,135B,DVLA,11/05/2020,149802,722.50,0.00,APPLICATION REFERENCE 1198-5526-6524-014912 MONTHS VEHICLE TAX FOR PE09 EUM,Licences/MOT Certificates
Wyre Council,http://opendatacommunities.org/doc/district-council/wyre,27/09/2020,People and Places,Support Services,135B,DVLA,11/05/2020,149804,267.50,0.00,APPLICATION REFERENCE 1198-5587-2598-548212 MONTHS VEHICLE TAX FOR PO13 OYC,Licences/MOT Certificates
Wyre Council,http://opendatacommunities.org/doc/district-council/wyre,27/09/2020,People and Places,Support Services,135B,DVLA,11/05/2020,149800,267.50,0.00,APPLICATION REFERENCE 1198-5581-2122-623412 MONTHS VEHICLE TAX FOR PN13 HFJ,Licences/MOT Certificates
Wyre Council,http://opendatacommunities.org/doc/district-council/wyre,27/09/2020,People and Places,Support Services,135B,DVLA,11/05/2020,149814,267.50,0.00,APPLICATION REFERENCE 1198-5587-2599-470812 MONTHS VEHICLE TAX FOR PO13 PNY,Licences/MOT Certificates
Wyre Council,http://opendatacommunities.org/doc/district-council/wyre,27/09/2020,People and Places,Support Services,135B,DVLA,11/05/2020,149812,267.50,0.00,APPLICATION REFERENCE 1198-5581-2133-506812 MONTHS VEHICLE TAX FOR PN13 PTU,Licences/MOT Certificates
Wyre Council,http://opendatacommunities.org/doc/district-council/wyre,27/09/2020,People and Places,Support Services,135B,DVLA,11/05/2020,149808,267.50,0.00,APPLICATION REFERENCE 1198-5587-2599-162112 MONTHS VEHICLE TAX FOR PO13 PFE,Licences/MOT Certificates
Wyre Council,http://opendatacommunities.org/doc/district-council/wyre,27/09/2020,People and Places,Support Services,135B,SCREWFIX,11/05/2020,149816,88.01,0.00,ORDER NO A6132030232LEYLAND TRADE HEAVY DUTY FLOOR PAINTGREY FLOOR PAINTBRUSHESROLLER &amp; TRAY,Materials and Consumables
Wyre Council,http://opendatacommunities.org/doc/district-council/wyre,27/09/2020,People and Places,Support Services,135B,DVLA,11/05/2020,149796,267.50,0.00,APPLICATION REF 1199-5563-0786-571712 MONTHS ROAD TAX FOR PK14 TMZ,Licences/MOT Certificates
Wyre Council,http://opendatacommunities.org/doc/district-council/wyre,27/09/2020,People and Places,Environmental Services,132B,DVLA,11/05/2020,149818,167.50,0.00,APPLICATION REFERENCE 1198-4686-3264-0404 12 MONTHS VEHICLE TAX FOR LJ16 DYG,Licences/MOT Certificates
Wyre Council,http://opendatacommunities.org/doc/district-council/wyre,27/09/2020,Resources,Support Services,135B,AMZNMKTPLACE,18/05/2020,150005,1.66,0.00,Order # 202-4699759-9753949,Stationery
Wyre Council,http://opendatacommunities.org/doc/district-council/wyre,27/09/2020,Resources,Support Services,135B,AMZNMKTPLACE,18/05/2020,150007,11.64,0.00,026-4073590-4943519,Comp Hardware Purchases
Wyre Council,http://opendatacommunities.org/doc/district-council/wyre,27/09/2020,Resources,Support Services,135B,AMZNMKTPLACE,18/05/2020,150003,14.98,0.00,Order # 026-7711453-0651569,Comp Hardware Purchases
Wyre Council,http://opendatacommunities.org/doc/district-council/wyre,27/09/2020,Resources,Support Services,135B,AMZNMKTPLACE AMAZON.CO,18/05/2020,150001,3.99,0.00,Order # 026-8246144-0097130,Comp Hardware Purchases
Wyre Council,http://opendatacommunities.org/doc/district-council/wyre,27/09/2020,Resources,Support Services,135B,AMZNMKTPLACE AMAZON.CO,18/05/2020,150015,21.30,0.00,Order # 206-9707400-5902769,Comp Hardware Purchases
Wyre Council,http://opendatacommunities.org/doc/district-council/wyre,27/09/2020,Resources,Support Services,135B,AMZNMKTPLACE AMAZON.CO,18/05/2020,150013,22.46,0.00,Order # 026-4623855-2220361,Comp Hardware Purchases
Wyre Council,http://opendatacommunities.org/doc/district-council/wyre,27/09/2020,Resources,Support Services,135B,AMZNMKTPLACE,18/05/2020,150009,7.49,0.00,Order # 026-7265673-3356363,Comp Hardware Purchases
Wyre Council,http://opendatacommunities.org/doc/district-council/wyre,27/09/2020,Resources,Support Services,135B,AMZNMKTPLACE,18/05/2020,150025,6.66,0.00,Order # 206-0094472-3480331,Comp Hardware Purchases
Wyre Council,http://opendatacommunities.org/doc/district-council/wyre,27/09/2020,Resources,Support Services,135B,AMZNMKTPLACE,18/05/2020,150023,41.60,0.00,Order # 206-3805745-0177934,Comp Hardware Purchases
Wyre Council,http://opendatacommunities.org/doc/district-council/wyre,27/09/2020,Resources,Support Services,135B,AMZNMKTPLACE,18/05/2020,150019,11.64,0.00,Order # 206-6709045-2642701,Comp Hardware Purchases
Wyre Council,http://opendatacommunities.org/doc/district-council/wyre,27/09/2020,Resources,Support Services,135B,2CO.COM SCALEFUSION,18/05/2020,149999,37.46,0.00,x2 Scalefusion licenses ICT Test devices,Licences
Wyre Council,http://opendatacommunities.org/doc/district-council/wyre,27/09/2020,Resources,Support Services,135B,AMZNMKTPLACE,18/05/2020,150027,39.96,0.00,Order # 206-4407437-6253908,Purchase of Tools or Equipment
Wyre Council,http://opendatacommunities.org/doc/district-council/wyre,27/09/2020,Resources,Central Services to the Public,131C,AMAZON.CO.UK 798FJ7RS5,18/05/2020,150029,70.70,0.00,Order # 026-5160004-5840346,Comp Hardware Purchases
Wyre Council,http://opendatacommunities.org/doc/district-council/wyre,27/09/2020,Resources,Central Services to the Public,131C,AMAZON.CO.UK 9X8NO10G5,18/05/2020,150031,70.71,0.00,Order # 026-5160004-5840346,Comp Hardware Purchases
Wyre Council,http://opendatacommunities.org/doc/district-council/wyre,27/09/2020,Resources,Central Services to the Public,131C,DRI CISCO WEBEX,18/05/2020,150041,39.60,0.00,Webex licenses (Online Meetings),Comp Hardware Purchases
Wyre Council,http://opendatacommunities.org/doc/district-council/wyre,27/09/2020,Resources,Central Services to the Public,131C,AMZNMKTPLACE AMAZON.CO,18/05/2020,150033,79.86,0.00,Order # 204-3785111-7213109,Comp Hardware Purchases
Wyre Council,http://opendatacommunities.org/doc/district-council/wyre,27/09/2020,Resources,Central Services to the Public,131C,WWW.SHOP4TELECOMS.CO.U,18/05/2020,150037,70.85,0.00,Mitel 5312 IP Handset MiVoice P/N 50005847 Grade 1 Refurbished,Comp Hardware Purchases
Wyre Council,http://opendatacommunities.org/doc/district-council/wyre,27/09/2020,Resources,Support Services,135B,2CO.COM SCALEFUSION,18/05/2020,150035,265.41,0.00,Scalefusion mobile device purchase. Environmental Health Department x14,Purchase of Tools or Equipment
Wyre Council,http://opendatacommunities.org/doc/district-council/wyre,27/09/2020,Resources,Central Services to the Public,131C,ZOOM.GBP,18/05/2020,150043,81.56,0.00,Zoom License,Comp Hardware Purchases
Wyre Council,http://opendatacommunities.org/doc/district-council/wyre,27/09/2020,Resources,Central Services to the Public,131C,AMZNMKTPLACE AMAZON.CO,18/05/2020,149997,52.38,0.00,Order # 204-3785111-7213109,Comp Hardware Purchases
Wyre Council,http://opendatacommunities.org/doc/district-council/wyre,27/09/2020,Resources,Central Services to the Public,131C,WIFI STOCK UK LTD,18/05/2020,150047,165.48,0.00,x15 48V 24W GIGABIT Poe Adapter,Comp Hardware Purchases
Wyre Council,http://opendatacommunities.org/doc/district-council/wyre,27/09/2020,Resources,Support Services,135B,NAME-CHEAP.COM,18/05/2020,150045,6.62,0.00,NAME-CHEAP.COM Domain Renewalwyredup.co.uk,Comp Hardware Purchases
Wyre Council,http://opendatacommunities.org/doc/district-council/wyre,27/09/2020,Resources,Corporate and Democratic Core,131A,Eventbrite,19/05/2020,150051,144.00,0.00,Eventbrite booking for Councillor online training Social Media Sessions,Training - Non HR Controlled
Wyre Council,http://opendatacommunities.org/doc/district-council/wyre,27/09/2020,People and Places,"Cultural, Environ and Planning",137B,www.johnheath.com,20/05/2020,150067,44.80,0.00,Drone insurance,Contract (New CCR)
Wyre Council,http://opendatacommunities.org/doc/district-council/wyre,27/09/2020,Resources,Housing General Fund,134A,CPC,21/05/2020,150110,50.22,0.00,CPC order for Ethernet Patch Leads for P Mason,Purchase of Tools or Equipment
Wyre Council,http://opendatacommunities.org/doc/district-council/wyre,27/09/2020,Resources,Support Services,135B,Eventbrite,21/05/2020,150112,-55.08,0.00,Refund of Eventbrite Booking for A Wallace and S Ordonez Open High Streets 26/03/20,Technical Training
Wyre Council,http://opendatacommunities.org/doc/district-council/wyre,27/09/2020,Resources,Support Services,135B,Eventbrite,21/05/2020,150108,55.08,0.00,Eventbrite Booking for A Wallace and S Ordonez Open High Streets 26/03/20,Technical Training
Wyre Council,http://opendatacommunities.org/doc/district-council/wyre,27/09/2020,Resources,"Cultural, Environ and Planning",137B,NETHERWOOD HOTEL,21/05/2020,150106,100.00,0.00,Netherwood Hotel booking for C Atherton 8-12 June 2020,Contract (New CCR)
Wyre Council,http://opendatacommunities.org/doc/district-council/wyre,27/09/2020,People and Places,Environmental Services,132B,UK PACKAGING.COM,28/05/2020,150187,94.22,0.00,INVOICE NO 100151182STAINLESS STEEL STRAPPING TENSIONERSTAINLESS STEEL STRAPPING,Community Development Initiatives
Wyre Council,http://opendatacommunities.org/doc/district-council/wyre,27/09/2020,People and Places,Planning and Development Servs,132C,J W FISH LTD,28/05/2020,150199,8.32,0.00,DEPOT DOOR LOCK,Materials and Consumables
Wyre Council,http://opendatacommunities.org/doc/district-council/wyre,27/09/2020,People and Places,Highways,133B,Preston Industrial Plastics,01/06/2020,150223,434.84,0.00,INVOICE 721930SUPPLIES,Maint. of Unadopted Assets - Engineers
Wyre Council,http://opendatacommunities.org/doc/district-council/wyre,27/09/2020,People and Places,Support Services,135B,Farol Limited,01/06/2020,150218,14.96,0.00,Invoice 152009Parts Spinner knob,Daywork Materials (Excl.Tyres)
Wyre Council,http://opendatacommunities.org/doc/district-council/wyre,27/09/2020,People and Places,Highways,133B,J W FISH LTD,01/06/2020,150221,15.83,0.00,ReceiptCopse Road Depot foam cleaner for piping,Maint. of Unadopted Assets - Engineers
Wyre Council,http://opendatacommunities.org/doc/district-council/wyre,27/09/2020,People and Places,Support Services,135B,Screwfix,01/06/2020,150216,13.30,0.00,Order number A6328349547Gas cartridges,Materials and Consumables
Wyre Council,http://opendatacommunities.org/doc/district-council/wyre,27/09/2020,People and Places,Central Services to the Public,131C,ASDA STORES LTD,02/06/2020,150300,4.50,0.00,Gluten free products for Fleetwood Hub.,Catering
Wyre Council,http://opendatacommunities.org/doc/district-council/wyre,27/09/2020,People and Places,Central Services to the Public,131C,Aldi,02/06/2020,150298,198.43,0.00,Food &amp; Products for Fleetwood Food Hub,Catering
Wyre Council,http://opendatacommunities.org/doc/district-council/wyre,27/09/2020,People and Places,Central Services to the Public,131C,Aldi,02/06/2020,150294,132.00,0.00,Fleetwood Hub milk from Aldi,Catering
Wyre Council,http://opendatacommunities.org/doc/district-council/wyre,27/09/2020,People and Places,Central Services to the Public,131C,Morrisons,02/06/2020,150296,549.10,0.00,Morrisons delivery 04/05/2020 - Fleetwood food hub,Catering
Wyre Council,http://opendatacommunities.org/doc/district-council/wyre,27/09/2020,People and Places,Central Services to the Public,131C,ASDA STORES LTD,02/06/2020,150272,12.00,0.00,Fleetwood Food Hub,Catering
Wyre Council,http://opendatacommunities.org/doc/district-council/wyre,27/09/2020,People and Places,Central Services to the Public,131C,Morrisons,02/06/2020,150274,490.69,0.00,Morrisions Shopping 13/05/2020,Catering
Wyre Council,http://opendatacommunities.org/doc/district-council/wyre,27/09/2020,People and Places,Central Services to the Public,131C,Aldi,02/06/2020,150276,59.50,0.00,Fleetwood Food Hub Shopping,Catering
Wyre Council,http://opendatacommunities.org/doc/district-council/wyre,27/09/2020,People and Places,Central Services to the Public,131C,Aldi,02/06/2020,150278,174.33,0.00,Shopping for Fleetwood Food Hub,Catering
Wyre Council,http://opendatacommunities.org/doc/district-council/wyre,27/09/2020,People and Places,Central Services to the Public,131C,Aldi,02/06/2020,150270,143.36,0.00,Aldi Fleetwood food hub,Catering
Wyre Council,http://opendatacommunities.org/doc/district-council/wyre,27/09/2020,People and Places,Central Services to the Public,131C,Morrisons,02/06/2020,150284,214.56,0.00,Fleetwood Food Hub,Catering
Wyre Council,http://opendatacommunities.org/doc/district-council/wyre,27/09/2020,People and Places,Central Services to the Public,131C,Aldi,02/06/2020,150286,89.78,0.00,Fleetwood Hub,Catering
Wyre Council,http://opendatacommunities.org/doc/district-council/wyre,27/09/2020,People and Places,Central Services to the Public,131C,Aldi,02/06/2020,150288,114.44,0.00,Fleetwood Food Hub,Catering
Wyre Council,http://opendatacommunities.org/doc/district-council/wyre,27/09/2020,People and Places,Central Services to the Public,131C,Aldi,02/06/2020,150280,95.13,0.00,Fleetwood Food Hub,Catering
Wyre Council,http://opendatacommunities.org/doc/district-council/wyre,27/09/2020,People and Places,Central Services to the Public,131C,Aldi,02/06/2020,150282,135.36,0.00,Fleetwood Food Hub,Catering
Wyre Council,http://opendatacommunities.org/doc/district-council/wyre,27/09/2020,People and Places,Central Services to the Public,131C,Aldi,02/06/2020,150290,61.46,0.00,Fleetwood Food Hub,Catering
Wyre Council,http://opendatacommunities.org/doc/district-council/wyre,27/09/2020,People and Places,Central Services to the Public,131C,Aldi,02/06/2020,150292,11.76,0.00,Fleetwood Food HUb,Catering
Wyre Council,http://opendatacommunities.org/doc/district-council/wyre,27/09/2020,People and Places,Central Services to the Public,131C,Aldi,02/06/2020,150304,126.16,0.00,Fleetwood Food Hub,Catering
Wyre Council,http://opendatacommunities.org/doc/district-council/wyre,27/09/2020,People and Places,Central Services to the Public,131C,Aldi,02/06/2020,150306,35.56,0.00,Fleetwood Food Hub shopping,Catering
Wyre Council,http://opendatacommunities.org/doc/district-council/wyre,27/09/2020,People and Places,Central Services to the Public,131C,Aldi,02/06/2020,150308,18.88,0.00,Fleetwood Food Hub,Catering
Wyre Council,http://opendatacommunities.org/doc/district-council/wyre,27/09/2020,People and Places,Central Services to the Public,131C,Aldi,02/06/2020,150302,105.83,0.00,Fleetwood Food Hub,Catering
Wyre Council,http://opendatacommunities.org/doc/district-council/wyre,27/09/2020,Resources,Support Services,135B,AMAZON.CO.UK,02/06/2020,150243,147.35,0.00,Amazon order for M Fenton Spons External Works and Landscape Price Book 2020,Purchase of Publications
Wyre Council,http://opendatacommunities.org/doc/district-council/wyre,27/09/2020,Resources,Central Services to the Public,131C,Complete Shopfittings,16/06/2020,150245,167.60,0.00,Amazon order 4 x A Boards for Anita Fish,Purchase of Tools or Equipment
Wyre Council,http://opendatacommunities.org/doc/district-council/wyre,27/09/2020,Resources,Support Services,135B,Taylor Nad Francis,02/06/2020,150247,140.00,0.00,Taylor &amp; Francis order for Spons Architect and Builders Price Book 2020 for P Gunson,Purchase of Publications
Wyre Council,http://opendatacommunities.org/doc/district-council/wyre,27/09/2020,People and Places,Cultural and Related Services,132A,Seton .co.uk,04/06/2020,150383,160.93,0.00,7x Fire Beaters - 193.12(for use on sites during dry weather),Purchase of Tools or Equipment
Wyre Council,http://opendatacommunities.org/doc/district-council/wyre,27/09/2020,People and Places,Environmental Services,132B,Mailchimp,11/06/2020,150481,176.79,0.00,Mailchimp transaction,Promotions - General
Wyre Council,http://opendatacommunities.org/doc/district-council/wyre,27/09/2020,People and Places,Cultural and Related Services,132A,BUILDERS SUPPLIES (WEST COAST) LTD,22/06/2020,150682,120.96,0.00,goods and items on  invoice 0001/00166214,Engineering and Maintenance Team
Wyre Council,http://opendatacommunities.org/doc/district-council/wyre,27/09/2020,People and Places,Environmental Services,132B,01580,22/06/2020,150678,130.85,0.00,"ref 31377 Purchase of padlock , locks and keys",Materials and Consumables
Wyre Council,http://opendatacommunities.org/doc/district-council/wyre,27/09/2020,People and Places,Environmental Services,132B,Fast Fix Workshop Ltd,22/06/2020,150684,33.79,0.00,anti climb paint and sockets,Materials and Consumables
Wyre Council,http://opendatacommunities.org/doc/district-council/wyre,27/09/2020,People and Places,Support Services,135B,Fast Fix Workshop Ltd,22/06/2020,150680,28.30,0.00,gorilla tubs,Purchase of Tools or Equipment
Wyre Council,http://opendatacommunities.org/doc/district-council/wyre,27/09/2020,People and Places,Environmental Services,132B,J W FISH LTD,22/06/2020,150676,5.70,0.00,glues and sealants for beach flag poles,Materials and Consumables
Wyre Council,http://opendatacommunities.org/doc/district-council/wyre,27/09/2020,Resources,Central Services to the Public,131C,EE,22/06/2020,150657,10.00,0.00,Top up REDACT - COVID,Rough Sleeper Project/NSNO
